[Event "Swiss Championship U16 2022"]
[Site "Biel"]
[Date "2022.07.20"]
[Round "6.6"]
[White "Knapp, Yanik"]
[Black "Saminskij, David"]
[Result "1/2-1/2"]
[ECO "E73"]
[WhiteElo "1675"]
[BlackElo "1469"]
[Annotator "NA RC COMBH"]
[PlyCount "81"]
[EventDate "2022.07.18"]
[EventType "swiss"]
[EventCountry "SUI"]
[SourceTitle "playchess.com"]
[Source "ChessBase"]
[SourceQuality "1"]
[TimeControl "5400+30"]

1. d4 {[%emt 0:00:02]} Nf6 {[%emt 0:00:08]} 2. c4 {[%emt 0:00:05]} g6 {[%emt 0:00:06]} 3. Nc3 {[%emt 0:00:06]} Bg7 {[%emt 0:00:00]} 4. e4 {[%emt 0:00:06]} d6 {[%emt 0:00:11]} 5. Be2 {[%emt 0:00:08]} O-O {[%emt 0:00:01]} 6. Bg5 {[%emt 0:01:13]} h6 {[%emt 0:01:37]} 7. Be3 {[%emt 0:00:25]} e5 {[%emt 0:00:32]} 8. d5 {[%emt 0:00:40]} Bd7 {[%emt 0:00:35]} 9. Qd2 {[%emt 0:00:00]} Kh7 {[%emt 0:03:25]} 10. f3 {[%emt 0:04:40]} c6 {[%emt 0:02:39]} 11. g4 {[%emt 0:02:06]} cxd5 {[%emt 0:01:14]} 12. cxd5 {[%emt 0:00:50]} h5 {[%emt 0:02:52]} 13. g5 {[%emt 0:05:40]} Ng8 {[%emt 0:02:36]} 14. h4 {[%emt 0:05:19]} a5 {[%emt 0:05:40]} 15. Rc1 {[%emt 0:02:15]} f5 {[%emt 0:05:20]} 16. Bb5 {[%emt 0:02:38]} fxe4 {[%emt 0:02:30]} 17. Bxd7 {[%emt 0:00:23]} Nxd7 {[%emt 0:00:23]} 18. fxe4 {[%emt 0:01:15]} b6 {[%emt 0:04:45]} 19. Nb5 {[%emt 0:08:29]} Nc5 {[%emt 0:02:16]} 20. Bxc5 {[%emt 0:00:09]} bxc5 {[%emt 0:02:00]} 21. Ne2 {[%emt 0:01:05]} Qb6 {[%emt 0:01:38]} 22. a4 {[%emt 0:09:39]} Ne7 {[%emt 0:03:16]} 23. Rf1 {[%emt 0:01:21]} Rxf1+ {[%emt 0:00:08]} 24. Kxf1 {[%emt 0:00:00]} Nc8 {[%emt 0:02:06]} 25. Kg2 {[%emt 0:00:00]} Na7 {[%emt 0:01:21]} 26. Nec3 {[%emt 0:00:35]} Nxb5 {[%emt 0:00:00]} 27. Nxb5 {[%emt 0:01:21]} Rf8 {[%emt 0:01:30]} 28. Rf1 {[%emt 0:03:56]} Qd8 {[%emt 0:00:50]} 29. Rxf8 {[%emt 0:02:31]} Qxf8 {[%emt 0:01:29]} 30. Qf2 {[%emt 0:00:00]} Qxf2+ {[%emt 0:01:41]} 31. Kxf2 {[%emt 0:00:07]} Bf8 {[%emt 0:00:41]} 32. Ke3 {[%emt 0:00:37]} Kg7 {[%emt 0:00:29]} 33. Kd3 {[%emt 0:00:28]} Be7 {[%emt 0:02:47]} 34. Kc4 {[%emt 0:00:57]} Kf7 {[%emt 0:01:24]} 35. Kd3 {[%emt 0:03:11]} Ke8 {[%emt 0:00:24]} 36. Na7 {[%emt 0:03:55]} Bd8 {[%emt 0:00:34]} 37. Nc6 {[%emt 0:00:00]} c4+ {[%emt 0:03:53]} 38. Kd2 {[%emt 0:00:37]} Bb6 {[%emt 0:00:30]} 39. Ke2 {[%emt 0:01:25]} Kd7 {[%emt 0:01:10]} 40. Kf1 {[%emt 0:01:10]} Ke8 {[%emt 0:00:15]} 41. Ke2 {[%emt 0:01:12]} 1/2-1/2

[Event "Swiss Championship U16 2022"]
[Site "Biel"]
[Date "2022.07.20"]
[Round "6.7"]
[White "Gendre, Arthur"]
[Black "Palmonella, Valentin"]
[Result "0-1"]
[ECO "D55"]
[WhiteElo "1414"]
[BlackElo "1778"]
[Annotator "NA RC COMBH"]
[PlyCount "56"]
[EventDate "2022.07.18"]
[EventType "swiss"]
[EventCountry "SUI"]
[SourceTitle "playchess.com"]
[Source "ChessBase"]
[SourceQuality "1"]
[TimeControl "5400+30"]

1. d4 {[%emt 0:00:03]} Nf6 {[%emt 0:00:03]} 2. c4 {[%emt 0:00:08]} e6 {[%emt 0:01:08]} 3. Nf3 {[%emt 0:00:06]} b6 {[%emt 0:00:04]} 4. Bg5 {[%emt 0:00:09]} Be7 {[%emt 0:03:38]} 5. Nc3 {[%emt 0:00:22]} Bb7 {[%emt 0:05:25]} 6. e3 {[%emt 0:00:21]} d5 {[%emt 0:02:53]} 7. Be2 {[%emt 0:03:27]} Nbd7 {[%emt 0:00:00]} 8. O-O {[%emt 0:00:27]} O-O {[%emt 0:01:59]} 9. cxd5 {[%emt 0:02:10]} Nxd5 {[%emt 0:02:10]} 10. Bxe7 {[%emt 0:00:46]} Qxe7 {[%emt 0:02:00]} 11. Rc1 {[%emt 0:01:40]} c5 {[%emt 0:01:54]} 12. Bb5 {[%emt 0:15:13]} Rfd8 {[%emt 0:05:31]} 13. Bxd7 {[%emt 0:09:22]} Rxd7 {[%emt 0:12:38]} 14. Ne5 {[%emt 0:02:59]} Nxc3 {[%emt 0:17:07]} 15. Rxc3 {[%emt 0:02:52]} Rd5 {[%emt 0:05:46]} 16. Qa4 {[%emt 0:05:10]} Qd6 {[%emt 0:18:17]} 17. dxc5 {[%emt 0:00:00]} Qxe5 {[%emt 0:00:44]} 18. c6 {[%emt 0:00:00]} Bxc6 {[%emt 0:01:04]} 19. Qxc6 {[%emt 0:00:00]} Rad8 {[%emt 0:03:15]} 20. Rcc1 {[%emt 0:02:59]} g6 {[%emt 0:01:35]} 21. g3 {[%emt 0:02:28]} Qxb2 {[%emt 0:02:33]} 22. Qc4 {[%emt 0:00:38]} Rc5 {[%emt 0:02:00]} 23. Qb3 {[%emt 0:02:46]} Qxc1 {[%emt 0:00:00]} 24. Rxc1 {[%emt 0:00:05]} Rxc1+ {[%emt 0:00:00]} 25. Kg2 {[%emt 0:00:07]} Rd2 {[%emt 0:01:21]} 26. Qb4 {[%emt 0:01:33]} Rcc2 {[%emt 0:00:36]} 27. Qf4 {[%emt 0:00:22]} Rxf2+ {[%emt 0:00:00]} 28. Qxf2 {[%emt 0:00:09]} Rxf2+ {[%emt 0:00:00]} 0-1

[Event "Swiss Championship U16 2022"]
[Site "Biel"]
[Date "2022.07.20"]
[Round "6.8"]
[White "Sosnovski, Nikita"]
[Black "Kwiatkowski, Jakub"]
[Result "0-1"]
[ECO "B92"]
[WhiteElo "1584"]
[BlackElo "1770"]
[Annotator "NA RC COMBH"]
[PlyCount "37"]
[EventDate "2022.07.18"]
[EventType "swiss"]
[EventCountry "SUI"]
[SourceTitle "playchess.com"]
[Source "ChessBase"]
[SourceQuality "1"]
[TimeControl "5400+30"]

1. e4 {[%emt 0:00:02]} c5 {[%emt 0:00:05]} 2. Nf3 {[%emt 0:00:09]} d6 {[%emt 0:00:06]} 3. d4 {[%emt 0:00:01]} cxd4 {[%emt 0:00:04]} 4. Nxd4 {[%emt 0:00:12]} Nf6 {[%emt 0:00:48]} 5. Nc3 {[%emt 0:00:10]} a6 {[%emt 0:00:04]} 6. Be2 {[%emt 0:00:21]} e5 {[%emt 0:00:05]} 7. Nb3 {[%emt 0:00:07]} Be6 {[%emt 0:00:46]} 8. O-O {[%emt 0:00:43]} Be7 {[%emt 0:00:09]} 9. Be3 {[%emt 0:00:50]} O-O {[%emt 0:00:17]} 10. Qd3 {[%emt 0:08:45]} Nc6 {[%emt 0:00:09]} 11. Nd5 {[%emt 0:02:52]} Nxd5 {[%emt 0:00:11]} 12. exd5 {[%emt 0:00:00]} Nb4 {[%emt 0:22:43]} 13. Qd2 {[%emt 0:01:02]} Nxd5 {[%emt 0:00:24]} 14. c4 {[%emt 0:00:30]} Nxe3 {[%emt 0:00:00]} 15. Qxe3 {[%emt 0:07:25]} Qc7 {[%emt 0:00:41]} 16. Rac1 {[%emt 0:02:20]} Rac8 {[%emt 0:10:33]} 17. Bd3 {[%emt 0:03:58]} f5 {[%emt 0:01:49]} 18. f3 {[%emt 0:04:18]} h6 {[%emt 0:03:42]} 19. Rfe1 {[%emt 0:01:18]} 0-1

[Event "Swiss Championship U16 2022"]
[Site "Biel"]
[Date "2022.07.21"]
[Round "7.1"]
[White "Kasipour Azbari, Seyed Arvin"]
[Black "Schellenberg, Simon"]
[Result "1/2-1/2"]
[ECO "B01"]
[WhiteElo "1944"]
[BlackElo "1899"]
[Annotator "TA"]
[PlyCount "61"]
[EventDate "2022.07.18"]
[EventType "swiss"]
[EventCountry "SUI"]
[SourceTitle "playchess.com"]
[Source "ChessBase"]
[SourceQuality "1"]
[TimeControl "5400+30"]

{[%evp 9,61,43,60,62,73,61,63,34,76,59,57,24,30,0,35,16,23,0,0,0,49,7,4,14,35,38,30,34,37,25,40,18,22,14,16,21,18,14,62,61,91,90,66,0,63,58,51,33,31,0,0,0,0,0]} 1. e4 {[%emt 0:00:10]} d5 {[%emt 0:00:23]} 2. exd5 {[%emt 0:00:15]} Nf6 {[%emt 0:00:25]} 3. d4 {[%emt 0:00:30]} Nxd5 {[%emt 0:00:03]} 4. c4 {[%emt 0:00:36]} Nf6 {[%emt 0:00:42]} 5. Nf3 {[%emt 0:00:20]} Bf5 {[%emt 0:04:18]} 6. Nc3 {[%emt 0:02:37] B01: Scandinavian Defence.} c6 {[%emt 0:01:11]} 7. Be2 {[%emt 0:00:20]} e6 {[%emt 0:03:02]} 8. Qb3 {[%emt 0:05:24] White is slightly better.} Qc7 {[%emt 0:17:29]} 9. O-O {[%emt 0:16:21][%cal Oc1f4]} Be7 {[%emt 0:14:35]} 10. h3 {[%emt 0:06:26][%cal Oc1f4]} (10. Bf4 $5 {[%cal Rf4c7]} Qb6 11. Nh4 $16) 10... Nbd7 {[%emt 0:01:44]} 11. Be3 {[%emt 0:09:44]} (11. Nh4 $5 {[%cal Rh4f5]}) 11... O-O {[%emt 0:01:20]} 12. Rfd1 {[%emt 0:06:24] [#]} (12. Nh4 {with more complications.} Ne4 13. Nxf5 exf5 14. Qc2) 12... Rfd8 $146 {[%emt 0:06:21]} ({Predecessor:} 12... Ne4 13. Nxe4 Bxe4 14. Rac1 c5 15. d5 Bd6 16. dxe6 fxe6 {1-0 (31) Bramme,I (2092)-Soyeur,N France 1999}) 13. Rac1 {[%emt 0:03:33]} (13. Nh4 {is interesting.} Ne4 14. Nxf5 exf5 15. Re1) 13... h6 {[%emt 0:10:36]} 14. a3 {[%emt 0:10:46]} Nb6 {[%emt 0:05:02]} (14... Bg6 $11) 15. Ne5 {[%emt 0:14:34]} (15. d5 $5) 15... Nbd7 {[%emt 0:04:33]} (15... a5 {feels hotter.} 16. Bd3 a4 17. Qc2 Bxd3 18. Qxd3 Nbd7) 16. Nxd7 {[%emt 0:06:01]} Qxd7 {[%emt 0:00:00]} 17. Bf3 {[%emt 0:03:30]} b6 {[%emt 0:00:00]} 18. d5 {[%emt 0:04:50]} cxd5 {[%emt 0:00:00]} 19. cxd5 {[%emt 0:02:23] [#] Strongly threatening g4.} Rac8 {[%emt 0:00:18]} 20. dxe6 {[%emt 0:00:00]} (20. g4 $5 {[%cal Rg4f5]} Bg6 21. dxe6 Qxe6 22. Qxe6 fxe6 23. Rxd8+ Rxd8 24. Nb5 $14) 20... Qxe6 {[%emt 0:00:00]} 21. Qxe6 {[%emt 0:00:00]} Bxe6 {[%emt 0:01:26]} 22. Nb5 {[%emt 0:07:05]} Rxd1+ {[%emt 0:02:02]} 23. Rxd1 {[%emt 0:00:36]} a6 {[%emt 0:02:55]} ({Resist} 23... Rc2 24. b4 $16) (23... a5 $1 $11 {is superior.}) 24. Nd4 $14 {[%emt 0:08:38] White is more active.} b5 {[%emt 0:01:34]} 25. Bb7 {[%emt 0:03:07][%csl LRa6,LRc8]} Rb8 {[%emt 0:03:11]} 26. Bf3 {[%emt 0:00:00]} (26. Bxa6 $5 {[%cal Rd4c6]} Bd7 27. Nf3 $16) 26... Rc8 $1 {[%emt 0:02:00]} 27. Nxe6 {[%emt 0:00:00]} fxe6 {[%emt 0:03:59]} 28. Bd4 {[%emt 0:02:31]} Rd8 {[%emt 0:02:03]} 29. Bxf6 {[%emt 0:00:00] A strong pair of Bishops.} Rxd1+ {[%emt 0:00:18]} 30. Bxd1 {[%emt 0:00:00]} Bxf6 {[%emt 0:00:16]} 31. b3 {[%emt 0:00:00] Weighted Error Value: White=0.15 (very precise) /Black=0.11 (very precise)} 1/2-1/2

[Event "Swiss Championship U16 2022"]
[Site "Biel"]
[Date "2022.07.21"]
[Round "7.2"]
[White "Rotunno, Flavio"]
[Black "Erne, Raphael"]
[Result "0-1"]
[ECO "D19"]
[WhiteElo "1901"]
[BlackElo "2060"]
[Annotator "NA RC"]
[PlyCount "92"]
[EventDate "2022.07.18"]
[EventType "swiss"]
[EventCountry "SUI"]
[SourceTitle "playchess.com"]
[Source "ChessBase"]
[SourceQuality "1"]
[TimeControl "5400+30"]

1. d4 {[%emt 0:00:17]} d5 {[%emt 0:00:06]} 2. c4 {[%emt 0:00:07]} c6 {[%emt 0:00:05]} 3. Nc3 {[%emt 0:00:12]} Nf6 {[%emt 0:00:09]} 4. Nf3 {[%emt 0:03:06]} dxc4 {[%emt 0:00:12]} 5. a4 {[%emt 0:00:04]} Bf5 {[%emt 0:00:09]} 6. e3 {[%emt 0:00:05]} e6 {[%emt 0:00:08]} 7. Bxc4 {[%emt 0:00:07]} Bb4 {[%emt 0:00:10]} 8. O-O {[%emt 0:00:04]} O-O {[%emt 0:00:16]} 9. Qe2 {[%emt 0:00:08]} Bg6 {[%emt 0:00:24]} 10. Ne5 {[%emt 0:05:51]} Nbd7 {[%emt 0:00:39]} 11. Nxg6 {[%emt 0:01:02]} hxg6 {[%emt 0:00:06]} 12. Rd1 {[%emt 0:04:34]} Qe7 {[%emt 0:01:11]} 13. e4 {[%emt 0:09:47]} e5 {[%emt 0:00:31]} 14. d5 {[%emt 0:02:11]} Rac8 {[%emt 0:00:21]} 15. dxc6 {[%emt 0:07:10]} bxc6 {[%emt 0:07:17]} 16. Bg5 {[%emt 0:11:42]} Nc5 {[%emt 0:08:35]} 17. Bxf6 {[%emt 0:03:08]} gxf6 {[%emt 0:17:46]} 18. Na2 {[%emt 0:04:31]} Rb8 {[%emt 0:05:15]} 19. Qg4 {[%emt 0:18:57]} Kg7 {[%emt 0:03:14]} 20. Nc1 {[%emt 0:00:52]} Rh8 {[%emt 0:09:49]} 21. Ne2 {[%emt 0:00:26]} f5 {[%emt 0:04:40]} 22. Qf3 {[%emt 0:01:58]} Nxe4 {[%emt 0:01:43]} 23. b3 {[%emt 0:02:41]} Bc5 {[%emt 0:01:49]} 24. Rf1 {[%emt 0:03:01]} Nd2 {[%emt 0:06:26]} 25. Qc3 {[%emt 0:04:59]} Nxf1 {[%emt 0:01:08]} 26. Rxf1 {[%emt 0:00:03]} Rbd8 {[%emt 0:02:25]} 27. h3 {[%emt 0:00:39]} Rd7 {[%emt 0:04:42]} 28. Nc1 {[%emt 0:02:59]} Bd4 {[%emt 0:01:24]} 29. Qg3 {[%emt 0:01:03]} e4 {[%emt 0:05:29]} 30. Ne2 {[%emt 0:00:35]} Be5 {[%emt 0:01:02]} 31. Qe3 {[%emt 0:00:16]} Rhd8 {[%emt 0:01:54]} 32. Nf4 {[%emt 0:03:52]} Qd6 {[%emt 0:01:43]} 33. Ne2 {[%emt 0:00:33]} Bd4 {[%emt 0:02:24]} 34. Nxd4 {[%emt 0:00:28]} Qxd4 {[%emt 0:00:04]} 35. Qg5 {[%emt 0:01:19]} Qf6 {[%emt 0:01:07]} 36. Qe3 {[%emt 0:00:13]} Rd4 {[%emt 0:00:51]} 37. Qf4 {[%emt 0:01:07]} Qd6 {[%emt 0:00:28]} 38. Qe3 {[%emt 0:00:31]} c5 {[%emt 0:01:47]} 39. Qc3 {[%emt 0:00:19]} f6 {[%emt 0:02:00]} 40. Qa5 {[%emt 0:00:09]} Qb6 {[%emt 0:00:30]} 41. Qc3 {[%emt 0:00:09]} Rd1 {[%emt 0:01:54]} 42. Qg3 {[%emt 0:00:05]} Rxf1+ {[%emt 0:00:49]} 43. Bxf1 {[%emt 0:00:04]} Rd1 {[%emt 0:00:49]} 44. b4 {[%emt 0:00:39]} cxb4 {[%emt 0:01:48]} 45. Qb3 {[%emt 0:00:35]} Qd4 {[%emt 0:00:57]} 46. g4 {[%emt 0:00:40]} Qd3 {[%emt 0:00:59]} 0-1

[Event "Swiss Championship U16 2022"]
[Site "Biel"]
[Date "2022.07.21"]
[Round "7.3"]
[White "Palmonella, Valentin"]
[Black "Gemelli, Romain"]
[Result "0-1"]
[ECO "B30"]
[WhiteElo "1778"]
[BlackElo "2045"]
[Annotator "TA"]
[PlyCount "44"]
[EventDate "2022.07.18"]
[EventType "swiss"]
[EventCountry "SUI"]
[SourceTitle "playchess.com"]
[Source "ChessBase"]
[SourceQuality "1"]
[TimeControl "5400+30"]

{[%evp 9,44,0,0,0,0,-27,0,-31,-20,-55,-59,-75,-29,-33,-40,-294,-293,-372,-314,-303,-330,-307,-266,-266,-263,-271,-258,-251,-263,-305,-255,-247,-262,-295,-235,-242,-223]} 1. e4 {[%emt 0:00:03]} c5 {[%emt 0:00:08]} 2. Nf3 {[%emt 0:00:07]} Nc6 {[%emt 0:00:18]} 3. Bc4 {[%emt 0:00:45]} Nf6 {[%emt 0:00:38]} 4. d3 {[%emt 0:00:02]} e6 {[%emt 0:05:39]} 5. O-O {[%emt 0:02:37]} d5 {[%emt 0:00:25]} 6. exd5 {[%emt 0:03:39] B30: Sicilian: 2...Nc6 3 Bb5, lines without ...g6.} exd5 {[%emt 0:03:00]} 7. Bb5 {[%emt 0:01:37]} Be7 {[%emt 0:12:29]} (7... Bd6 {looks sharper.} 8. Qe2+ Be6 9. Ng5 Qd7) 8. c3 {[%emt 0:02:22] The position is equal.} O-O {[%emt 0:00:48]} 9. d4 {[%emt 0:07:42]} Qb6 {[%emt 0:00:00]} 10. Be2 {[%emt 0:10:21] [#]} Ne4 $146 {[%emt 0:05:08] Black is more active.} ({Black should play} 10... Re8 $17) ({Predecessor:} 10... Bf5 11. h3 Rfe8 12. dxc5 Bxc5 13. Nbd2 Bc2 14. Qxc2 Rxe2 15. Qd3 Bxf2+ 16. Kh1 Nh5 17. Nd4 Nxd4 18. Rxf2 Rxf2 19. cxd4 Re8 20. Nf3 Rf1+ {0-1 (20) Alishani,I (2167)-Firat,B (2428) Skopje 2013}) 11. dxc5 {[%emt 0:15:39]} Bxc5 {[%emt 0:00:56][%cal Re4f2]} 12. Qe1 {[%emt 0:00:32][%mdl 8192] [#] This move loses the game for White.} (12. Qxd5 $15 Bxf2+ 13. Kh1) 12... Re8 $19 {[%emt 0:02:46]} 13. Be3 {[%emt 0:16:45]} Bxe3 {[%emt 0:00:00]} 14. fxe3 {[%emt 0:00:03]} Qxb2 {[%emt 0:03:56]} ({Don't go for} 14... Qxe3+ $2 15. Kh1 $19) 15. Nbd2 {[%emt 0:00:55]} Qxc3 {[%emt 0:00:00]} 16. Bb5 {[%emt 0:01:22]} Nxd2 {[%emt 0:01:14]} 17. Nxd2 {[%emt 0:01:03]} Qxe3+ {[%emt 0:00:00]} 18. Qxe3 {[%emt 0:00:02]} Rxe3 {[%emt 0:00:00]} 19. Kf2 {[%emt 0:03:13]} Re8 {[%emt 0:00:20]} 20. Rac1 {[%emt 0:00:00]} Bd7 {[%emt 0:01:40]} 21. Rc5 {[%emt 0:03:25]} Rac8 {[%emt 0:03:46]} 22. Rb1 {[%emt 0:01:24]} a6 {[%emt 0:02:49] Weighted Error Value: White=0.43/Black=0.18 (very precise)} 0-1

[Event "Swiss Championship U16 2022"]
[Site "Biel"]
[Date "2022.07.21"]
[Round "7.4"]
[White "Papaux, Steve"]
[Black "Doetsch-Thaler, Nicos"]
[Result "1-0"]
[ECO "A50"]
[WhiteElo "2031"]
[BlackElo "1837"]
[Annotator "TA"]
[PlyCount "117"]
[EventDate "2022.07.18"]
[EventType "swiss"]
[EventCountry "SUI"]
[SourceTitle "playchess.com"]
[Source "ChessBase"]
[SourceQuality "1"]
[TimeControl "5400+30"]

{[%evp 9,117,-42,-27,-60,-47,-75,-78,-69,-79,-110,-22,-34,-38,-33,-29,-34,0,-70,-22,-94,-23,-20,-32,-24,0,-19,79,0,62,38,112,81,208,-14,-13,-22,-16,-27,-45,-50,-63,-154,-85,-89,-83,-93,-85,-84,-8,-8,-8,-8,-8,-8,-10,-9,88,85,86,-333,79,87,105,112,90,89,100,94,80,79,144,145,145,145,290,288,173,173,1160,1160,1197,1168,1170,1169,1171,1193,1200,1160,1182,1163,1156,1137,1108,1101,1083,1076,1061,1054,1054,942,897,561,29979,29979,29982,29983,29983,29983,29983,29984]} 1. d4 {[%emt 0:00:03]} Nf6 {[%emt 0:00:15]} 2. c4 {[%emt 0:00:04]} e6 {[%emt 0:00:20]} 3. g4 {[%emt 0:05:19]} Nxg4 {[%emt 0:05:13]} 4. e4 {[%emt 0:02:46]} Nf6 {[%emt 0:03:02] [#]} 5. Nc3 $146 {[%emt 0:06:40]} ({Predecessor:} 5. e5 Ng8 6. Bd3 Ne7 7. Nf3 g6 8. h4 h5 9. Nc3 d5 10. exd6 Qxd6 11. Ne4 Qb4+ 12. Bd2 Qxb2 13. Rb1 Qa3 14. Nf6+ Kd8 15. Rb3 Qa6 16. Ne5 {1-0 (16) Krasenkova,I (2081)-Hoffman,S (1659) Dos Hermanas 2004}) 5... Bb4 {[%emt 0:07:11] aiming for ...Nxe4.} 6. Bg2 {[%emt 0:10:17] A50: Queen's Fianchetto Defence (1 d4 Nf6 2 c4 b6).} c5 {[%emt 0:33:11]} 7. a3 {[%emt 0:12:04]} Bxc3+ {[%emt 0:00:00]} 8. bxc3 {[%emt 0:04:29] Black is better.} d6 {[%emt 0:00:12]} 9. f4 {[%emt 0:10:41]} e5 {[%emt 0:06:03]} (9... d5 $17 10. exd5 O-O 11. dxe6 (11. dxc5 exd5 12. Nf3 Nc6 $17) 11... Bxe6 12. Bxb7 Bg4) 10. dxe5 $11 {[%emt 0:00:55]} dxe5 {[%emt 0:01:08]} 11. Qxd8+ {[%emt 0:00:00]} (11. fxe5 $2 Qxd1+ 12. Kxd1 Ng4 $19) 11... Kxd8 {[%emt 0:00:00]} 12. fxe5 {[%emt 0:00:00]} Ng4 {[%emt 0:03:20]} (12... Nfd7 $5 {[%cal Rd7e5]}) 13. Bg5+ {[%emt 0:00:00]} (13. Nf3 $11) 13... Kc7 {[%emt 0:00:30]} (13... Ke8 $15 14. Nf3 h6) 14. Nf3 {[%emt 0:00:00]} (14. Bf4 $1 $11) 14... Nc6 {[%emt 0:00:30]} ({Black should play} 14... h6 $1 $17 {[%cal Rh6g5]} 15. Bf4 g5) 15. Bf4 {[%emt 0:00:00] This bishop pair is nice.} Be6 {[%emt 0:00:30]} 16. h3 {[%emt 0:00:00]} Nh6 {[%emt 0:00:30]} (16... g5 $5 17. Nxg5 Ngxe5 $11) 17. O-O-O {[%emt 0:00:00]} Bxc4 {[%emt 0:20:55]} (17... Rad8 $11 {keeps the balance.}) 18. Rd6 {[%emt 0:05:28]} (18. Bf1 $16 Bxf1 19. Rhxf1) 18... Be6 {[%emt 0:00:50]} ({Better is} 18... Rae8 $11) 19. Ng5 $1 $14 {[%emt 0:09:29]} Bc4 {[%emt 0:12:25]} (19... Rae8 $14) 20. e6 {[%emt 0:03:59]} f6 {[%emt 0:02:35]} (20... fxe6 $16 {keeps fighting.} 21. Nxe6+ Bxe6) 21. Nf7 $2 {[%emt 0:01:21]} (21. Nf3 $1 $18) 21... Nxf7 $11 {[%emt 0:00:00]} 22. Rd7+ {[%emt 0:00:30]} Kb6 {[%emt 0:02:28]} 23. Bc7+ {[%emt 0:01:17]} ({Of course not} 23. exf7 Be6 24. Bc7+ Kb5 $17) 23... Kb5 {[%emt 0:00:00]} 24. exf7 {[%emt 0:00:54][%cal Oa3a4]} Be6 {[%emt 0:00:18]} 25. Rd2 {[%emt 0:03:26]} (25. a4+ $15 Kxa4 26. Rd5) 25... Bxf7 {[%emt 0:02:33]} (25... Rac8 $142 26. Bh2 Rhf8 27. Rb2+ Ka4 28. Rxb7 Rxf7 29. Rxf7 Bxf7) 26. Rb2+ $17 {[%emt 0:01:22]} Ka6 {[%emt 0:01:42]} 27. Rd1 {[%emt 0:03:45]} Rhe8 {[%emt 0:03:24]} 28. e5 {[%emt 0:01:34] Hoping for Rd6.} fxe5 {[%emt 0:00:00]} (28... Bc4 $1 $17 29. Rd6 Re6) 29. Rd6 $1 $132 {[%emt 0:00:44][%mdl 2048] White is not keeping still} e4 {[%emt 0:03:23] Strongly threatening ...Re7.} 30. Bf1+ $1 {[%emt 0:03:50]} c4 {[%emt 0:00:00] And now ...Re7 would win.} 31. Rb4 $1 {[%emt 0:00:15]} Rac8 {[%emt 0:00:00]} 32. Rxc4 {[%emt 0:01:34] [#]} Bxc4 {[%emt 0:00:00]} (32... b6 $1 $11 33. Rcxc6+ Kb7) 33. Bxc4+ $16 {[%emt 0:00:00]} b5 {[%emt 0:00:00]} 34. Rxc6+ {[%emt 0:00:00]} Kb7 {[%emt 0:00:00] [#]} 35. Bd5 {[%emt 0:02:05] White is more active.} Rxc7 {[%emt 0:00:10][%mdl 4096] Endgame KRR-KRB} (35... e3 36. Kd1) 36. Re6+ {[%emt 0:00:00][%mdl 64] Discovered Attack} Kc8 {[%emt 0:00:00]} 37. Rxe8+ {[%emt 0:00:00] KRB-KR} Kd7 {[%emt 0:00:00]} 38. Rg8 {[%emt 0:00:00]} Rxc3+ {[%emt 0:00:00]} 39. Kb2 {[%emt 0:00:56]} Rxh3 {[%emt 0:00:57]} (39... Re3 $142) 40. Rxg7+ {[%emt 0:00:10]} Kd6 {[%emt 0:00:08]} 41. Bxe4 {[%emt 0:00:29]} Rh2+ {[%emt 0:00:18]} (41... a5 $16 42. Rxh7 Rg3) 42. Bc2 $1 $18 {[%emt 0:02:03]} a5 {[%emt 0:00:13]} 43. Rxh7 {[%emt 0:00:05]} Rf2 {[%emt 0:01:27]} (43... Rxh7 44. Bxh7 Kc5) 44. Ra7 $1 {[%emt 0:00:20]} a4 {[%emt 0:00:20]} 45. Kc3 {[%emt 0:00:36]} Kc5 {[%emt 0:00:17]} 46. Rb7 {[%emt 0:00:16]} Rf3+ {[%emt 0:00:00] [#]} 47. Bd3 $1 {[%emt 0:00:17]} Kc6 {[%emt 0:00:25]} 48. Rb8 {[%emt 0:00:34]} Rg3 {[%emt 0:00:43]} 49. Rf8 {[%emt 0:00:36]} Kc5 {[%emt 0:00:35]} 50. Rf5+ {[%emt 0:00:10]} Kc6 {[%emt 0:01:16]} 51. Re5 {[%emt 0:00:39]} Rh3 {[%emt 0:00:26]} 52. Kd4 {[%emt 0:00:00]} Rh4+ {[%emt 0:00:33]} 53. Re4 {[%emt 0:00:00]} Rh5 {[%emt 0:00:24]} 54. Re6+ {[%emt 0:00:47]} Kc7 {[%emt 0:00:39]} 55. Re5 {[%emt 0:01:34]} Rxe5 {[%emt 0:00:00]} 56. Kxe5 {[%emt 0:00:34] White mates.} b4 {[%emt 0:00:05]} 57. axb4 {[%emt 0:00:05]} a3 {[%emt 0:00:00]} 58. Bc4 {[%emt 0:00:10]} Kb6 {[%emt 0:00:00] [#]} 59. Kd4 $1 {[%emt 0:01:03] Weighted Error Value: White=0.25 (precise) /Black=0.44} 1-0